bitfinex/quotes_BTCUSD_20250610
["timestamp","ask_amount","ask_price","bid_price","bid_amount"]
[1749593865356,0.44905141,109980.0,109970.0,0.09185958]
[1749593865588,0.44905141,109980.0,109970.0,0.09185952]
[1749593865810,0.44901141,109980.0,109970.0,0.08551063]
[1749593866066,0.44901141,109980.0,109970.0,0.09185938]
[1749593867304,0.44901141,109980.0,109970.0,0.08151063]
[1749593867517,0.44901141,109980.0,109970.0,0.06531063]
[1749593867705,0.44901141,109980.0,109970.0,0.05655907]
[1749593867979,0.46411141,109980.0,109970.0,0.05655907]
[1749593868184,0.46411141,109980.0,109970.0,0.09267563]
[1749593868185,0.48011141,109980.0,109970.0,0.09267563]
[1749593868400,0.49465226,109980.0,109970.0,0.09267563]
[1749593869060,0.49465226,109980.0,109970.0,0.09267577]
[1749593869284,0.49465226,109980.0,109970.0,0.08632719]
[1749593869697,0.47865226,109980.0,109970.0,0.09267577]
[1749593869911,0.46355226,109980.0,109970.0,0.09267577]
[1749593870147,0.46355226,109980.0,109970.0,0.05655921]
[1749593870353,0.46355226,109980.0,109970.0,0.09267261]
[1749593870777,0.46355226,109980.0,109970.0,0.09267238]
[1749593870989,0.46355226,109980.0,109970.0,0.09267237]
[1749593871881,0.46355226,109980.0,109970.0,0.09267233]
[1749593872312,0.46355226,109980.0,109970.0,0.10292403]
[1749593872516,0.46355226,109980.0,109970.0,0.10927157]
[1749593872726,0.46355226,109980.0,109970.0,0.10292403]
[1749593873160,0.46355226,109980.0,109970.0,0.10927155]
[1749593873362,0.46355226,109980.0,109970.0,0.10927174]
[1749593874024,0.46355226,109980.0,109970.0,0.10927144]
[1749593874473,0.46355226,109980.0,109970.0,0.10292403]
[1749593874892,0.46355226,109980.0,109970.0,0.10927139]
[1749593875162,0.46355226,109980.0,109970.0,0.08815799]
[1749593875632,0.46355226,109980.0,109970.0,0.08815745]
[1749593875841,0.46355226,109980.0,109970.0,0.06681063]
[1749593876273,0.46355226,109980.0,109970.0,0.07315726]
[1749593877560,0.46355226,109980.0,109970.0,0.06681063]
[1749593877777,0.10889141,109980.0,109970.0,0.07315709]
[1749593877999,0.10889141,109980.0,109970.0,0.10498084]
[1749593878223,0.44889141,109980.0,109970.0,0.11132576]
[1749593878640,0.44889141,109980.0,109970.0,0.11132588]
[1749593879125,0.34013141,109980.0,109970.0,0.11132401]
[1749593879339,0.34013141,109980.0,109970.0,0.10498084]
[1749593879568,0.34013141,109980.0,109970.0,0.11132319]
[1749593879777,0.34013141,109980.0,109970.0,0.11132262]
[1749593879987,0.34013141,109980.0,109970.0,0.11132254]
[1749593880698,0.34013141,109980.0,109970.0,0.10498084]
[1749593880934,0.34013141,109980.0,109970.0,0.11132305]
[1749593881157,0.34013141,109980.0,109970.0,0.11132377]
[1749593881382,0.34013141,109980.0,109970.0,0.11132412]
[1749593881610,0.34013141,109980.0,109970.0,0.11132386]
[1749593881804,0.34013141,109980.0,109970.0,0.11132399]
[1749593882022,0.34013141,109980.0,109970.0,0.09522406]
[1749593882454,0.34013141,109980.0,109970.0,0.11142406]
[1749593883131,0.34013141,109980.0,109970.0,0.11142181]
[1749593883332,0.34013141,109980.0,109970.0,0.09522183]
[1749593883547,0.34013141,109980.0,109970.0,0.00634288]
[1749593883768,0.34013141,109980.0,109970.0,0.02184288]
[1749593883979,0.34013141,109980.0,109970.0,0.09412372]
[1749593884426,0.37123141,109980.0,109970.0,0.00634263]
[1749593884640,0.37123141,109980.0,109970.0,0.00634293]
[1749593884869,0.37123141,109980.0,109970.0,0.00634344]
[1749593885086,0.37123141,109980.0,109970.0,0.0063438]
[1749593885298,0.37123141,109980.0,109970.0,0.00634385]
[1749593886395,0.37123141,109980.0,109970.0,0.00634341]
[1749593886614,0.37123141,109980.0,109960.0,0.08778084]
[1749593886917,0.37123141,109980.0,109960.0,0.09412425]
[1749593887128,0.37123141,109980.0,109970.0,0.05413797]
[1749593887129,0.47712566,109980.0,109970.0,0.05413797]
[1749593887363,0.58572566,109980.0,109970.0,0.09657787]
[1749593887803,0.58572566,109980.0,109970.0,0.0424399]
[1749593888015,0.58572566,109980.0,109970.0,0.04244564]
[1749593888240,0.58572566,109980.0,109970.0,0.03609528]
[1749593889322,0.58572566,109980.0,109970.0,0.0424457]
[1749593889531,0.58572566,109980.0,109970.0,0.04244604]
[1749593889733,0.58572566,109980.0,109970.0,0.03609528]
[1749593889946,0.58572566,109980.0,109970.0,0.04244591]
[1749593890356,0.58572566,109980.0,109970.0,0.04244602]
[1749593890578,0.58572566,109980.0,109970.0,0.03609528]
[1749593890796,0.58572566,109980.0,109970.0,0.04244604]
[1749593891226,0.58572566,109980.0,109970.0,0.04244555]
[1749593891868,0.58572566,109980.0,109970.0,0.09023325]
[1749593892547,0.58572566,109980.0,109970.0,0.09658296]
[1749593892973,0.58572566,109980.0,109970.0,0.05413797]
[1749593893206,0.58572566,109980.0,109970.0,0.06048733]
[1749593893433,0.57072566,109980.0,109970.0,0.06048733]
[1749593893651,0.44602566,109980.0,109970.0,0.06048725]
[1749593893891,0.44602566,109980.0,109970.0,0.07033797]
[1749593894099,0.55458566,109980.0,109970.0,0.06048652]
[1749593894310,0.55458566,109980.0,109970.0,0.06048648]
[1749593894993,0.58668566,109980.0,109970.0,0.06048631]
[1749593895207,0.58668566,109980.0,109970.0,0.09661057]
[1749593895422,0.58668566,109980.0,109970.0,0.09661148]
[1749593895828,0.58668566,109980.0,109970.0,0.09661124]
[1749593896658,0.58668566,109980.0,109970.0,0.09661137]
[1749593896867,0.58668566,109980.0,109970.0,0.09026223]
[1749593897077,0.58668566,109980.0,109970.0,0.09661145]
[1749593897517,0.58668566,109980.0,109970.0,0.09661146]
[1749593898553,0.58668566,109980.0,109970.0,0.09660888]
[1749593898836,0.58668566,109980.0,109970.0,0.09660887]
[1749593899206,0.58668566,109980.0,109970.0,0.09660883]
[1749593900208,0.58668566,109980.0,109970.0,0.09660835]
[1749593900648,0.58668566,109980.0,109970.0,0.09660846]
[1749593900900,0.57078566,109980.0,109970.0,0.09660846]
[1749593901111,0.57078566,109980.0,109970.0,0.0966079]
[1749593901768,0.57078566,109980.0,109970.0,0.09660781]
[1749593902231,0.57078566,109980.0,109970.0,0.09660788]
[1749593902441,0.57078566,109980.0,109970.0,0.09660776]
[1749593902897,0.57078566,109980.0,109970.0,0.09026223]
[1749593903357,0.57078566,109980.0,109970.0,0.09660718]
[1749593903583,0.57078566,109980.0,109970.0,0.09660722]
[1749593904051,0.57078566,109980.0,109970.0,0.09026223]
[1749593904222,0.58688566,109980.0,109970.0,0.09660725]
[1749593904464,0.58688566,109980.0,109970.0,0.09660719]
[1749593905095,0.57078566,109980.0,109970.0,0.09660719]
[1749593905304,0.57078566,109980.0,109970.0,0.06048293]
[1749593905522,0.57078566,109980.0,109970.0,0.05413797]
[1749593905736,0.58688566,109980.0,109970.0,0.09024455]
[1749593906013,0.58688566,109980.0,109970.0,0.0604836]
[1749593906224,0.58688566,109980.0,109970.0,0.05413797]
[1749593906440,0.35454085,109970.0,109960.0,0.0154]
[1749593906648,0.35454085,109970.0,109960.0,0.02174573]
[1749593906883,0.35454085,109970.0,109960.0,0.00634573]
[1749593907086,0.37024085,109970.0,109960.0,0.00634499]
[1749593907274,0.37024085,109970.0,109960.0,0.06050916]
[1749593907510,0.37024085,109970.0,109950.0,0.08858084]
[1749593907721,0.37024085,109970.0,109960.0,0.05616408]
[1749593907947,0.35454085,109970.0,109960.0,0.06250918]
[1749593908154,0.35454085,109970.0,109960.0,0.06250916]
[1749593908358,0.35454085,109970.0,109960.0,0.06350916]
[1749593908538,0.35454085,109970.0,109960.0,0.06150916]
[1749593908736,0.36954085,109970.0,109960.0,0.06150916]
[1749593908945,0.36954085,109970.0,109960.0,0.06151021]
[1749593909163,0.36954085,109970.0,109960.0,0.00634605]
[1749593909379,0.36954085,109970.0,109960.0,0.00734608]
[1749593909580,0.36954085,109970.0,109960.0,0.001]
[1749593909832,0.36954085,109970.0,109960.0,0.00734607]
[1749593910256,0.36954085,109970.0,109960.0,0.00934607]
[1749593911501,0.35454085,109970.0,109960.0,0.00934607]
[1749593912530,0.35454085,109970.0,109960.0,0.00935021]
[1749593912751,0.35454085,109970.0,109960.0,0.08163105]
[1749593912890,0.35454085,109970.0,109960.0,0.07528084]
[1749593913487,0.35454085,109970.0,109960.0,0.08163102]
[1749593914605,0.35454085,109970.0,109960.0,0.07528084]
[1749593914818,0.35454085,109970.0,109960.0,0.08163789]
[1749593915068,0.3539726,109970.0,109960.0,0.08163789]
[1749593915284,0.3539726,109970.0,109960.0,0.08163795]
[1749593915945,0.3539726,109970.0,109960.0,0.08163804]
[1749593916396,0.3539726,109970.0,109960.0,0.07528084]
[1749593916609,0.3698726,109970.0,109960.0,0.08163807]
[1749593916810,0.33792778,109970.0,109960.0,0.08163807]
[1749593917947,0.33792778,109970.0,109960.0,0.07528084]
[1749593918160,0.33792778,109970.0,109960.0,0.08163815]
[1749593918365,0.33792778,109970.0,109960.0,0.0816382]
[1749593918583,0.33792778,109970.0,109960.0,0.08163822]
[1749593919358,0.33792778,109970.0,109960.0,0.07528084]
[1749593919783,0.33792778,109970.0,109960.0,0.08163828]
[1749593920174,0.33792778,109970.0,109960.0,0.08163834]
[1749593920331,0.33792778,109970.0,109960.0,0.07528084]
[1749593920986,0.33792778,109970.0,109960.0,0.08163824]
[1749593921187,0.44382203,109970.0,109960.0,0.07528084]
[1749593921334,0.46002203,109970.0,109960.0,0.07528084]
[1749593921996,0.46002203,109970.0,109960.0,0.08163866]
[1749593922199,0.46002203,109970.0,109960.0,0.08163886]
[1749593922399,0.46002203,109970.0,109960.0,0.07528084]
[1749593922991,0.46002203,109970.0,109960.0,0.08163954]
[1749593923187,0.46002203,109970.0,109960.0,0.07528084]
[1749593923391,0.46002203,109970.0,109960.0,0.08163948]
[1749593923599,0.46002203,109970.0,109960.0,0.08163942]
[1749593924380,0.46002203,109970.0,109960.0,0.08163896]
[1749593924603,0.46002203,109970.0,109960.0,0.07528084]
[1749593925047,0.48686249,109970.0,109960.0,0.08163896]
[1749593925250,0.48686249,109970.0,109960.0,0.08163906]
[1749593925460,0.32202778,109970.0,109960.0,0.08163955]
[1749593925658,0.4482,109970.0,109960.0,0.09703955]
[1749593925861,0.4482,109970.0,109960.0,0.07528084]
[1749593926544,0.4633,109970.0,109960.0,0.07528084]
[1749593926901,0.4633,109970.0,109960.0,0.08164087]
[1749593927653,0.4633,109970.0,109960.0,0.08164095]
[1749593928005,0.4633,109970.0,109960.0,0.08164097]
[1749593928241,0.4633,109970.0,109960.0,0.07528084]
[1749593928896,0.4633,109970.0,109960.0,0.08164096]
[1749593929199,0.4633,109970.0,109960.0,0.07528084]
[1749593929403,0.4633,109970.0,109960.0,0.08800108]
[1749593929610,0.4633,109970.0,109960.0,0.08164096]
[1749593929824,0.59652261,109970.0,109960.0,0.08164096]
[1749593930033,0.59652261,109970.0,109960.0,0.06363859]
[1749593930034,0.61262261,109970.0,109960.0,0.06363859]
[1749593930240,0.61262261,109970.0,109960.0,0.07000114]
[1749593930869,0.61262261,109970.0,109960.0,0.06163859]
[1749593931295,0.61262261,109970.0,109960.0,0.06063859]
[1749593931466,0.61362261,109970.0,109960.0,0.06063859]
[1749593931674,0.61354261,109970.0,109960.0,0.06063859]
[1749593932300,0.61454261,109970.0,109960.0,0.06063859]
[1749593933699,0.50642261,109970.0,109960.0,0.06063859]
[1749593933905,0.59840261,109970.0,109960.0,0.06063859]
[1749593934306,0.61470261,109970.0,109960.0,0.06063859]
[1749593934937,0.50662261,109970.0,109960.0,0.06063859]
[1749593935180,0.61470261,109970.0,109960.0,0.06063859]
[1749593937568,0.61470261,109970.0,109960.0,0.00636012]
[1749593938379,0.61470261,109970.0,109960.0,0.06063859]
[1749593938511,0.61470261,109970.0,109960.0,0.00636012]
[1749593941709,0.59840261,109970.0,109960.0,0.00636012]
[1749593941932,0.62567861,109970.0,109960.0,0.00636012]
[1749593942367,0.62559861,109970.0,109960.0,0.00636012]
[1749593942987,0.64149861,109970.0,109960.0,0.00636012]
[1749593944103,0.62559861,109970.0,109960.0,0.00636012]
[1749593944315,0.58318261,109970.0,109960.0,0.00636012]
[1749593944537,0.47728836,109970.0,109960.0,0.07583859]
[1749593945174,0.47728836,109970.0,109960.0,0.02156012]
[1749593945388,0.47728836,109970.0,109960.0,0.00636012]
[1749593946229,0.49388836,109970.0,109960.0,0.00636012]
[1749593947074,0.47728836,109970.0,109960.0,0.00636012]
[1749593948139,0.49248836,109970.0,109960.0,0.00636012]
[1749593948967,0.50868836,109970.0,109960.0,0.00636012]
[1749593949168,0.61458261,109970.0,109960.0,0.00636012]
[1749593961334,0.64185961,109970.0,109960.0,0.00636012]
[1749593965392,0.53389961,109970.0,109960.0,0.00636012]
[1749593965600,0.65873961,109970.0,109960.0,0.00636012]
[1749593967525,0.51769961,109970.0,109960.0,0.00636012]
[1749593968009,0.62541961,109970.0,109960.0,0.00636012]
[1749593969731,0.64181961,109970.0,109960.0,0.00636012]
[1749593970309,0.51769961,109970.0,109960.0,0.00636012]
[1749593970570,0.62537961,109970.0,109960.0,0.00636012]
[1749593970796,0.64067961,109970.0,109960.0,0.00636012]
[1749593971428,0.64067961,109970.0,109960.0,0.01271675]
[1749593971629,0.64067961,109970.0,109960.0,0.01271674]
[1749593971830,0.64067961,109970.0,109960.0,0.01271694]
[1749593972030,0.64067961,109970.0,109960.0,0.00636012]
[1749593972288,0.64067961,109970.0,109960.0,0.06696159]
[1749593972499,0.64067961,109970.0,109960.0,0.06060487]
[1749593972638,0.64067961,109970.0,109960.0,0.06696146]
[1749593972846,0.64067961,109970.0,109960.0,0.06696142]
[1749593973276,0.64067961,109970.0,109960.0,0.06696152]
[1749593973477,0.64067961,109970.0,109960.0,0.0669616]
[1749593973681,0.64067961,109970.0,109960.0,0.06060487]
[1749593974052,0.64067961,109970.0,109960.0,0.06696169]
[1749593974391,0.64067961,109970.0,109960.0,0.06696177]
[1749593974605,0.64067961,109970.0,109960.0,0.06060487]
[1749593975255,0.62537961,109970.0,109960.0,0.06060487]
[1749593977121,0.48795876,109970.0,109960.0,0.06060487]
[1749593977329,0.58282261,109970.0,109960.0,0.07690487]
[1749593979303,0.58282261,109970.0,109960.0,0.02266012]
[1749593979504,0.58282261,109970.0,109960.0,0.07690678]
[1749593980021,0.47522261,109970.0,109960.0,0.07690678]
[1749593980394,0.58278261,109970.0,109960.0,0.02266012]
[1749593981191,0.58278261,109970.0,109960.0,0.07690304]
[1749593981351,0.58278261,109970.0,109960.0,0.02266012]
[1749593981874,0.58278261,109970.0,109960.0,0.07690065]
[1749593983189,0.58278261,109970.0,109960.0,0.02266012]
[1749593983385,0.58278261,109970.0,109960.0,0.07689691]
[1749593983541,0.58278261,109970.0,109960.0,0.02266012]
[1749593983888,0.58278261,109970.0,109960.0,0.07689663]
[1749593984165,0.58278261,109970.0,109960.0,0.02266012]
[1749593984619,0.58278261,109970.0,109960.0,0.07689577]
[1749593986264,0.58278261,109970.0,109960.0,0.06059577]
[1749593986480,0.59918261,109970.0,109960.0,0.06059577]
[1749593991887,0.61558261,109970.0,109960.0,0.06059577]
[1749593992086,0.61558261,109970.0,109960.0,0.0967593]
[1749593992928,0.61558261,109970.0,109960.0,0.06059577]
[1749593998016,0.47664836,109970.0,109960.0,0.09329577]
[1749593998221,0.36932836,109970.0,109960.0,0.09329577]
[1749593998435,0.47664836,109970.0,109960.0,0.09329577]
[1749593998585,0.47664836,109970.0,109960.0,0.03906012]
[1749593998982,0.47664836,109970.0,109960.0,0.11133158]
[1749593999247,0.47564836,109970.0,109960.0,0.11133158]
[1749593999454,0.47464836,109970.0,109960.0,0.11133158]
[1749594000414,0.58054261,109970.0,109960.0,0.02296012]
[1749594000614,0.58054261,109970.0,109960.0,0.06059586]
[1749594000615,0.59714261,109970.0,109960.0,0.06059586]
[1749594000875,0.61244261,109970.0,109960.0,0.06059586]
[1749594004136,0.61244261,109970.0,109960.0,0.09675696]
[1749594004566,0.61244261,109970.0,109960.0,0.09675644]
[1749594004865,0.61244261,109970.0,109960.0,0.06059586]
[1749594005212,0.61244261,109970.0,109960.0,0.09675659]
[1749594007769,0.61344261,109970.0,109960.0,0.09675659]
[1749594007937,0.64072061,109970.0,109960.0,0.09675659]
[1749594008367,0.64172061,109970.0,109960.0,0.09675659]
[1749594013622,0.61444261,109970.0,109960.0,0.09675659]
[1749594015732,0.61444261,109970.0,109960.0,0.04252085]
[1749594016009,0.64171961,109970.0,109960.0,0.00636012]
[1749594016239,0.88868169,109970.0,109960.0,0.00636012]
[1749594016370,0.88868169,109970.0,109940.0,0.002]
[1749594016371,0.0319,109950.0,109940.0,0.002]
[1749594016580,0.61775425,109950.0,109940.0,0.002]
[1749594016989,0.64503725,109950.0,109940.0,0.002]
[1749594018364,0.64603725,109950.0,109940.0,0.002]
[1749594018568,0.64703725,109950.0,109940.0,0.002]
[1749594020288,0.6324964,109950.0,109940.0,0.002]
[1749594020520,0.64703725,109950.0,109940.0,0.002]
[1749594021900,0.63053725,109950.0,109940.0,0.002]
[1749594022121,0.63049725,109950.0,109940.0,0.002]
[1749594022342,0.47517725,109950.0,109940.0,0.002]
[1749594022591,0.4333534,109950.0,109940.0,0.0346]
[1749594022835,0.55493425,109950.0,109940.0,0.0346]
[1749594023447,0.44904,109950.0,109940.0,0.0346]
[1749594023657,0.44804,109950.0,109940.0,0.0346]
[1749594023864,0.44704,109950.0,109940.0,0.0356]
[1749594026154,0.34,109950.0,109940.0,0.0356]
[1749594026358,0.44704,109950.0,109940.0,0.0356]
[1749594029872,0.44704,109950.0,109940.0,0.019]
[1749594038178,0.55293425,109950.0,109940.0,0.003]
[1749594038378,0.58543425,109950.0,109940.0,0.003]
[1749594039693,0.58643425,109950.0,109940.0,0.003]
[1749594039895,0.58643425,109950.0,109940.0,0.002]
[1749594040096,0.58743425,109950.0,109940.0,0.002]
[1749594040500,0.61471625,109950.0,109940.0,0.002]
[1749594041141,0.64735625,109950.0,109940.0,0.002]
[1749594043430,0.64735625,109950.0,109940.0,0.002]
[1749594044970,0.64735625,109950.0,109940.0,0.01893678]
[1749594045414,0.64735625,109950.0,109940.0,0.01894873]
[1749594045621,0.64735625,109950.0,109940.0,0.002]
[1749594045923,0.64735625,109950.0,109940.0,0.01894864]
[1749594046094,0.64735625,109950.0,109940.0,0.01894848]
[1749594046339,0.64735625,109950.0,109940.0,0.05512285]
[1749594046539,0.64735625,109950.0,109940.0,0.03817439]
[1749594047004,0.64735625,109950.0,109940.0,0.05512378]
[1749594047135,0.64735625,109950.0,109940.0,0.03817439]
[1749594047336,0.64735625,109950.0,109940.0,0.05512375]
[1749594047946,0.64735625,109950.0,109940.0,0.05512377]
[1749594048175,0.64735625,109950.0,109940.0,0.03817439]
[1749594048374,0.64735625,109950.0,109940.0,0.05512671]
[1749594048592,0.64735625,109950.0,109940.0,0.09236013]
[1749594048792,0.64735625,109950.0,109940.0,0.05512651]
[1749594049004,0.64735625,109950.0,109940.0,0.03817439]
[1749594049214,0.64735625,109950.0,109940.0,0.05512685]
[1749594049427,0.64735625,109950.0,109940.0,0.05512713]
[1749594049639,0.64735625,109950.0,109940.0,0.09236013]
[1749594049860,0.64735625,109950.0,109940.0,0.10931255]
[1749594050098,0.64735625,109950.0,109940.0,0.05512736]
[1749594050327,0.64735625,109950.0,109940.0,0.05512745]
[1749594050565,0.64735625,109950.0,109940.0,0.05512724]
[1749594050976,0.64735625,109950.0,109940.0,0.10931298]
[1749594051427,0.64735625,109950.0,109940.0,0.09236013]
[1749594051862,0.64735625,109950.0,109940.0,0.05514208]
[1749594052062,0.64735625,109950.0,109940.0,0.05514256]
[1749594052266,0.64735625,109950.0,109940.0,0.03817439]
[1749594052468,0.64735625,109950.0,109940.0,0.05514384]
[1749594052678,0.64735625,109950.0,109940.0,0.05514413]
[1749594052880,0.64735625,109950.0,109940.0,0.05514446]
[1749594053082,0.64735625,109950.0,109940.0,0.03817439]
[1749594053470,0.64735625,109950.0,109940.0,0.10933055]
[1749594053712,0.64735625,109950.0,109940.0,0.10932834]
[1749594054231,0.64735625,109950.0,109940.0,0.05514447]
[1749594054480,0.50767625,109950.0,109940.0,0.09236013]
[1749594054749,0.64699625,109950.0,109940.0,0.10933285]
[1749594055012,0.64699625,109950.0,109940.0,0.09204843]
[1749594055978,0.64699625,109950.0,109940.0,0.10902806]
[1749594056236,0.64699625,109950.0,109940.0,0.1090283]
[1749594056491,0.64699625,109950.0,109940.0,0.10902824]
[1749594056736,0.64699625,109950.0,109940.0,0.10902818]
[1749594057025,0.61435625,109950.0,109940.0,0.10902818]
[1749594057232,0.61435625,109950.0,109940.0,0.09204843]
[1749594057995,0.61435625,109950.0,109940.0,0.10902927]
[1749594058220,0.61435625,109950.0,109940.0,0.09204843]
[1749594058459,0.61435625,109950.0,109940.0,0.10902936]
[1749594058697,0.61435625,109950.0,109940.0,0.10902939]
[1749594058943,0.61435625,109950.0,109940.0,0.09204843]
[1749594059181,0.61435625,109950.0,109940.0,0.05484364]
[1749594059419,0.61435625,109950.0,109940.0,0.03786269]
[1749594059662,0.61435625,109950.0,109940.0,0.05484462]
[1749594060112,0.61435625,109950.0,109940.0,0.05483896]
[1749594060337,0.6917838,109950.0,109940.0,0.05483914]
[1749594060568,0.62345071,109950.0,109940.0,0.01866507]
[1749594060771,0.62345071,109950.0,109940.0,0.01866545]
[1749594060973,0.62345071,109950.0,109940.0,0.0016883]
[1749594061219,0.62345071,109950.0,109940.0,0.01866738]
[1749594061848,0.62345071,109950.0,109940.0,0.01866744]
[1749594062056,0.72315766,109950.0,109940.0,0.01866751]
[1749594062229,0.0312,109930.0,109920.0,0.002]
[1749594062434,0.2291534,109930.0,109920.0,0.002]
[1749594063098,0.2564414,109930.0,109920.0,0.002]
[1749594063327,0.27098225,109930.0,109920.0,0.002]
[1749594063545,0.27098225,109930.0,109920.0,0.00204819]
[1749594063766,0.27198225,109930.0,109920.0,0.00204819]
[1749594065362,0.28131441,109930.0,109920.0,0.00204819]
[1749594066420,0.62131441,109930.0,109920.0,0.00204819]
[1749594069365,0.51471441,109930.0,109920.0,0.00204819]
[1749594069583,0.65387441,109930.0,109920.0,0.00204819]
[1749594078067,0.58999441,109930.0,109920.0,0.03344819]
[1749594078292,0.57545356,109930.0,109920.0,0.03344819]
[1749594078963,0.58995441,109930.0,109920.0,0.03344819]
[1749594080985,0.48351441,109930.0,109920.0,0.03344819]
[1749594081213,0.11677216,109930.0,109920.0,0.03344819]
[1749594081648,0.10744,109930.0,109920.0,0.03344819]
[1749594081857,0.001,109930.0,109920.0,0.03344819]
[1749594082071,0.34,109930.0,109920.0,0.03344819]
[1749594082290,0.34,109930.0,109920.0,0.03444819]
[1749594082524,0.34,109930.0,109920.0,0.03544819]
[1749594082968,0.34,109930.0,109920.0,0.10817877]
[1749594083186,0.34,109930.0,109920.0,0.03544819]
[1749594084778,0.10644,109940.0,109930.0,0.0311]
[1749594084990,0.44644,109940.0,109930.0,0.0311]
[1749594085210,0.34,109940.0,109930.0,0.0311]
[1749594085430,0.44644,109940.0,109930.0,0.0311]
[1749594086308,0.44744,109940.0,109930.0,0.0311]
[1749594088484,0.341,109940.0,109930.0,0.0311]
[1749594088713,0.4474,109940.0,109930.0,0.0311]
[1749594088938,0.341,109940.0,109930.0,0.0311]
[1749594089155,0.4474,109940.0,109930.0,0.0311]
[1749594090942,0.001,109940.0,109930.0,0.0311]
[1749594091986,0.4553013,109950.0,109940.0,0.0307]
[1749594093391,0.4553013,109950.0,109940.0,0.0317]
[1749594093836,0.4553013,109950.0,109940.0,0.0327]
[1749594094072,0.3489013,109950.0,109940.0,0.0327]
[1749594094300,0.4552613,109950.0,109940.0,0.0327]
[1749594095195,0.4552613,109950.0,109940.0,0.0174]
[1749594096162,0.4552613,109950.0,109940.0,0.002]
[1749594096644,0.4717613,109950.0,109940.0,0.002]
[1749594099129,0.59345555,109950.0,109940.0,0.002]
[1749594100020,0.59345555,109950.0,109940.0,0.001]
[1749594100897,0.57695555,109950.0,109920.0,0.05832299]
[1749594101110,0.0152,109940.0,109920.0,0.05832299]
[1749594101321,0.10632,109930.0,109920.0,0.05832299]
[1749594101528,0.13732,109940.0,109920.0,0.04332299]
[1749594102912,0.13732,109940.0,109920.0,0.04532299]
[1749594103131,0.34,109930.0,109920.0,0.03022299]
[1749594103614,0.34,109930.0,109920.0,0.03222299]
[1749594104060,0.34,109930.0,109920.0,0.03022299]
[1749594104713,0.3558,109930.0,109920.0,0.03222299]
[1749594106043,0.3714,109930.0,109920.0,0.03222299]
[1749594106479,0.3558,109930.0,109920.0,0.03222299]
[1749594106910,0.47779425,109930.0,109920.0,0.03222299]
[1749594110244,0.47779425,109930.0,109920.0,0.00604819]
[1749594113498,0.50507925,109930.0,109920.0,0.00604819]
[1749594114828,0.53735925,109930.0,109920.0,0.00604819]
[1749594117728,0.50507925,109930.0,109920.0,0.00604819]
[1749594117955,0.59521925,109930.0,109920.0,0.00604819]
[1749594118179,0.47317925,109930.0,109920.0,0.02164819]
[1749594118402,0.473525,109930.0,109920.0,0.03684819]
[1749594119107,0.44624,109930.0,109920.0,0.02164819]
[1749594119325,0.44624,109930.0,109920.0,0.00604819]
[1749594119326,0.58433425,109930.0,109920.0,0.00604819]
[1749594124177,0.61161925,109930.0,109920.0,0.00604819]
[1749594124863,0.47317925,109930.0,109920.0,0.00604819]
[1749594125300,0.57937925,109930.0,109920.0,0.00604819]
[1749594126168,0.59487925,109930.0,109920.0,0.00604819]
[1749594126378,0.47317925,109930.0,109920.0,0.00604819]
[1749594126589,0.57937925,109930.0,109920.0,0.00604819]
[1749594127717,0.55209425,109930.0,109920.0,0.02174819]
[1749594128878,0.55209425,109930.0,109920.0,0.00604819]
[1749594130408,0.44589425,109930.0,109920.0,0.00604819]
[1749594130629,0.55209425,109930.0,109920.0,0.02264819]
[1749594132587,0.55209425,109930.0,109920.0,0.00604819]
[1749594132803,0.56749425,109930.0,109920.0,0.00604819]
[1749594133665,0.47649425,109930.0,109920.0,0.00604819]
[1749594133883,0.58265425,109930.0,109920.0,0.00604819]
[1749594134323,0.55205425,109930.0,109920.0,0.03774819]
[1749594134810,0.44616,109930.0,109920.0,0.03774819]
[1749594137245,0.34,109930.0,109920.0,0.03774819]
[1749594137468,0.44616,109930.0,109920.0,0.03774819]
[1749594138993,0.34,109930.0,109920.0,0.03774819]
[1749594139209,0.44612,109930.0,109920.0,0.03774819]
[1749594141212,0.34,109930.0,109920.0,0.03774819]
[1749594141432,0.44612,109930.0,109920.0,0.03774819]
[1749594142936,0.44612,109930.0,109920.0,0.02204819]
[1749594144847,0.34,109930.0,109920.0,0.03714819]
[1749594145081,0.44612,109930.0,109920.0,0.03714819]
[1749594145294,0.44612,109930.0,109920.0,0.10941965]
[1749594145744,0.34,109930.0,109920.0,0.10941965]
[1749594145975,0.44608,109930.0,109920.0,0.10941965]
[1749594146472,0.34,109930.0,109920.0,0.07831965]
[1749594146706,0.44608,109930.0,109920.0,0.07831965]
[1749594146919,0.44608,109930.0,109920.0,0.10901965]
[1749594148602,0.34,109930.0,109920.0,0.10901965]
[1749594152132,0.3561,109930.0,109920.0,0.07831965]
[1749594152350,0.3561,109930.0,109920.0,0.00604819]
[1749594152775,0.3718,109930.0,109920.0,0.00604819]
[1749594153274,0.47769425,109930.0,109920.0,0.00604819]
[1749594160518,0.61569425,109930.0,109920.0,0.00604819]
[1749594163838,0.64297925,109930.0,109920.0,0.00604819]
[1749594177501,0.6426785,109930.0,109920.0,0.00604819]
[1749594182435,0.6426785,109930.0,109920.0,0.00404819]
[1749594182874,0.6426785,109930.0,109920.0,0.00304819]
[1749594183290,0.6436785,109930.0,109920.0,0.00204819]
[1749594186181,0.03094085,109910.0,109900.0,0.05628503]
[1749594186392,0.58411425,109910.0,109900.0,0.002]
[1749594186851,0.61140725,109910.0,109900.0,0.002]
[1749594187293,0.61140725,109910.0,109900.0,0.004]
[1749594187727,0.61140725,109910.0,109900.0,0.006]
[1749594188419,0.61140725,109910.0,109900.0,0.004]
[1749594190621,0.61140725,109910.0,109900.0,0.004]
[1749594191503,0.63895661,109910.0,109900.0,0.004]
[1749594195992,0.63873661,109910.0,109900.0,0.004]
[1749594196626,0.65413661,109910.0,109900.0,0.004]
[1749594197722,0.66993661,109910.0,109900.0,0.004]
[1749594201308,0.66993661,109910.0,109890.0,0.02708664]
[1749594201309,0.6790343,109910.0,109890.0,0.02708664]
[1749594201503,0.47599425,109900.0,109890.0,0.02708664]
[1749594201724,0.0301,109890.0,109880.0,0.07527873]
[1749594201944,0.0301,109890.0,109880.0,0.03908664]
[1749594201945,0.5673334,109890.0,109880.0,0.03908664]
[1749594203074,0.56738151,109890.0,109880.0,0.012]
[1749594203912,0.56738151,109890.0,109880.0,0.013]
[1749594204934,0.56738151,109890.0,109880.0,0.02991528]
[1749594205356,0.56738151,109890.0,109880.0,0.02991527]
[1749594205563,0.56738151,109890.0,109880.0,0.013]
[1749594205985,0.56738151,109890.0,109880.0,0.02991635]
[1749594206412,0.56738151,109890.0,109880.0,0.02991645]
[1749594207065,0.56738151,109890.0,109880.0,0.05700871]
[1749594207277,0.56738151,109890.0,109880.0,0.02991645]
[1749594207496,0.56738151,109890.0,109880.0,0.05700871]
[1749594207733,0.60012129,109890.0,109880.0,0.05700871]
[1749594207935,0.58192236,109890.0,109880.0,0.013]